bitfinex-derivatives/quotes_SOLF0:USTF0_20251002
["timestamp","ask_amount","ask_price","bid_price","bid_amount"]
[1759372840295,1.39122735,222.87,222.8,110.52]
[1759372842389,1.39122735,222.87,222.79,1.39122735]
[1759372842588,1.39122735,222.87,222.8,110.52]
[1759372842795,11.5961,222.88,222.8,110.52]
[1759372843002,11.5961,222.88,222.81,110.52]
[1759372843400,1.39122735,222.89,222.81,110.52]
[1759372843596,1.39122735,222.89,222.81,114.5573]
[1759372843998,5.42712735,222.89,222.81,110.52]
[1759372844694,12.98712735,222.89,222.81,110.52]
[1759372845589,12.98712735,222.89,222.81,111.91122735]
[1759372846201,11.5959,222.89,222.81,110.52]
[1759372846401,7.56,222.89,222.81,110.52]
[1759372846798,6.20911995,222.92,222.81,110.52]
[1759372846996,4.0355,222.92,222.81,115.55387935]
[1759372848803,4.0355,222.92,222.82,4.0371]
[1759372849201,4.0355,222.92,222.83,77.18]
[1759372849602,7.56,222.93,222.83,77.18]
[1759372849902,7.56,222.94,222.84,108.26]
[1759372850105,64.93891995,222.95,222.84,108.26]
[1759372850298,7.56,222.94,222.84,108.26]
[1759372850499,7.56,222.94,222.81,5.03387935]
[1759372850694,11.5956,222.91,222.85,110.52]
[1759372855309,4.0352,222.93,222.85,114.5566]
[1759372856009,4.0352,222.93,222.85,4.0366]
[1759372856210,4.0352,222.93,222.86,110.52]
[1759372856512,10.01361995,222.95,222.86,110.52]
[1759372857006,7.84,222.95,222.87,4.0361]
[1759372857205,7.84,222.95,222.86,110.52]
[1759372857206,11.8743,222.99,222.86,110.52]
[1759372857403,11.8743,222.99,222.9,4.0357]
[1759372857704,7.84,222.99,222.9,4.0357]
[1759372859202,7.84,223.07,222.95,62.7639]
[1759372859404,7.84,223.07,222.96,112.69361995]
[1759372859605,7.84,223.07,222.96,2.17361995]
[1759372859806,7.84,223.07,222.97,110.68]
[1759372860007,7.84,223.07,222.97,114.7144]
[1759372860203,7.84,223.07,222.97,4.0344]
[1759372860408,7.84,223.07,222.98,110.68]
[1759372860812,7.84,223.07,222.97,4.0344]
[1759372860813,11.8727,223.07,222.95,333.7074993]
[1759372861009,11.8727,223.07,222.96,110.66]
[1759372861208,11.8727,223.07,222.97,110.64]
[1759372861609,11.8727,223.07,222.98,110.64]
[1759372862812,11.8727,223.07,222.99,110.6]
[1759372862813,4.0331,223.05,222.99,110.6]
[1759372863513,7.84,223.07,222.99,110.6]
[1759372863713,7.84,223.07,222.93,4.0351]
[1759372863910,7.84,223.07,222.94,110.64]
[1759372864112,11.8733,223.04,222.95,110.62]
[1759372864408,11.8733,223.04,222.91,2.17361995]
[1759372864610,11.8733,223.04,222.92,110.62]
[1759372864909,7.84,223.04,222.93,110.6]
[1759372865104,7.84,223.04,222.94,2.17361995]
[1759372865303,7.84,223.04,222.95,110.58]
[1759372865909,7.84,223.04,222.96,110.58]
[1759372866211,7.84,223.04,222.94,2.17361995]
[1759372866511,7.84,223.04,222.97,110.56]
[1759372867115,7.84,223.04,222.92,326.4]
[1759372867309,7.84,223.04,222.93,110.56]
[1759372867515,7.84,223.04,222.94,110.56]
[1759372868015,7.84,223.04,222.93,4.0351]
[1759372868214,7.84,223.04,222.94,47.6]
[1759372869813,7.84,223.04,222.93,4.0351]
[1759372870010,7.84,223.04,222.95,110.52]
[1759372870210,4.0334,223.03,222.96,110.48]
[1759372870808,7.84,223.04,222.97,110.48]
[1759372871615,7.84,223.04,222.95,4.0348]
[1759372871913,7.84,223.04,222.98,110.48]
[1759372872312,11.8724,223.09,222.98,110.48]
[1759372872514,7.84,223.09,222.98,110.48]
[1759372872715,62.7027,223.17,222.98,110.48]
[1759372872716,7.84,223.13,222.98,112.65361995]
[1759372872915,7.84,223.13,223.01,2.17361995]
[1759372873610,4.0318,223.12,223.01,2.17361995]
[1759372874117,7.84,223.13,223.01,2.17361995]
[1759372874615,4.0321,223.1,223.01,2.17361995]
[1759372874817,7.84,223.13,223.01,2.17361995]
[1759372875214,11.8717,223.13,223.02,4.0335]
[1759372875713,4.0311,223.16,223.04,6.20681995]
[1759372875913,4.0311,223.16,223.05,83.8]
[1759372877613,4.0314,223.14,223.04,6.20681995]
[1759372877813,4.0314,223.14,223.05,34.94]
[1759372878221,11.871,223.17,223.05,37.11361995]
[1759372879322,7.84,223.17,223.06,4.0328]
[1759372881019,7.84,223.17,223.05,2.17361995]
[1759372881223,7.84,223.17,223.07,25.32]
[1759372881718,4.031,223.16,223.07,25.32]
[1759372882324,4.031,223.16,223.08,49.12]
[1759372883223,4.031,223.16,223.05,6.20661995]
[1759372883224,62.7087,223.15,223.02,13.26170866]
[1759372883423,7.78,223.14,223.03,41.92]
[1759372883625,7.78,223.14,223.05,2.17361995]
[1759372883821,7.78,223.14,223.03,41.92]
[1759372883822,7.78,223.14,223.04,2.17361995]
[1759372884021,7.78,223.14,223.05,63.553]
[1759372884218,4.031,223.16,223.05,63.553]
[1759372886123,7.48,223.18,223.07,4.0326]
[1759372886319,7.48,223.18,223.07,2.17361995]
[1759372886924,7.48,223.18,223.02,13.46602447]
[1759372886925,7.48,223.18,223.08,110.42]
[1759372888129,7.48,223.23,223.1,4.0321]
[1759372888332,7.48,223.23,223.09,2.17361995]
[1759372888726,7.48,223.23,223.14,4.0314]
[1759372888924,7.48,223.23,223.12,2.17361995]
[1759372889330,7.48,223.23,223.13,57.88]
[1759372889530,7.48,223.23,223.14,88.74]
[1759372890029,7.48,223.23,223.12,2.17361995]
[1759372890030,7.48,223.23,223.15,110.5]
[1759372891732,7.48,223.23,223.11,2.17361995]
[1759372892233,7.48,223.2,223.12,38.42]
[1759372894635,7.48,223.2,223.12,42.4517]
[1759372895530,11.5097,223.24,223.14,4.0313]
[1759372897636,7.48,223.24,223.16,4.0309]
[1759372897835,7.48,223.29,223.16,62.7052]
[1759372898030,7.48,223.29,223.17,2.17361995]
[1759372898835,7.48,223.29,223.17,6.20431995]
[1759372899334,7.48,223.29,223.19,4.0305]
[1759372900230,7.48,223.29,223.21,4.0301]
[1759372900432,7.48,223.29,223.22,110.38]
[1759372900633,7.48,223.31,223.23,110.38]
[1759372900833,7.48,223.27,223.2,110.38]
[1759372901037,2.17361995,223.26,223.2,110.42]
[1759372901340,7.48,223.25,223.12,2.17361995]
[1759372901735,4.0296,223.24,223.13,42.32]
[1759372902135,7.48,223.25,223.13,42.32]
[1759372902535,7.48,223.25,223.14,4.0313]
[1759372902942,7.48,223.25,223.15,39.58]
[1759372903536,7.48,223.25,223.16,4.0309]
[1759372903738,7.48,223.25,223.17,100.1]
[1759372904846,11.509,223.28,223.17,100.1]
[1759372905639,11.509,223.28,223.18,110.44]
[1759372906035,7.48,223.28,223.18,110.44]
[1759372907148,7.48,223.28,223.19,4.0305]
[1759372907338,7.48,223.28,223.2,110.4]
[1759372908038,7.48,223.26,223.2,110.4]
[1759372908240,1.3867753,223.21,223.13,1.3867753]
[1759372908440,1.3867753,223.21,223.14,35.3]
[1759372908634,1.3867753,223.19,223.11,1.3867753]
[1759372908839,1.3867753,223.19,223.12,110.44]
[1759372909040,1.3867753,223.19,223.1,4.0319]
[1759372909239,8.8667753,223.19,223.11,74.76]
[1759372909840,8.8667753,223.19,223.1,4.0319]
[1759372910049,8.8667753,223.19,223.11,110.44]
[1759372910238,1.3867753,223.19,223.12,4.0317]
[1759372910445,1.3867753,223.21,223.12,4.0317]
[1759372910638,1.3867753,223.21,223.13,52.2]
[1759372911251,7.48,223.2,223.11,1.3867753]
[1759372911441,1.3867753,223.19,223.12,110.42]
[1759372912044,1.3867753,223.19,223.13,110.42]
[1759372912239,1.3867753,223.19,223.14,110.4]
[1759372912442,8.8667753,223.19,223.14,110.4]
[1759372912644,8.8667753,223.19,223.15,110.4]
[1759372912845,8.8667753,223.19,223.11,1.3867753]
[1759372913446,7.48,223.19,223.12,110.38]
[1759372913643,4.0299,223.23,223.13,111.7667753]
[1759372913644,1.3867753,223.22,223.13,111.7667753]
[1759372914848,1.3867753,223.2,223.1,4.0319]
[1759372915150,9.0767753,223.2,223.11,111.7667753]
[1759372915352,1.3867753,223.18,223.07,8.74796485]
[1759372915554,1.3867753,223.16,223.08,110.4]
[1759372916150,7.69,223.17,223.09,5.4189753]
[1759372917246,1.3867753,223.16,223.09,5.4189753]
[1759372917443,1.3867753,223.16,223.09,4.0322]
[1759372917946,7.69,223.17,223.11,4.0319]
[1759372918150,1.3867753,223.2,223.11,4.0319]
[1759372918541,11.72,223.22,223.15,4.0311]
[1759372918542,7.69,223.22,223.15,4.0311]
[1759372918747,7.69,223.22,223.16,110.38]
[1759372919647,7.69,223.22,223.15,4.0311]
[1759372919850,7.69,223.22,223.16,110.48]
[1759372921453,1.3867753,223.24,223.17,4.0308]
[1759372922349,9.0767753,223.26,223.19,4.0304]
[1759372922555,9.0767753,223.26,223.18,1.3867753]
[1759372922855,7.69,223.26,223.18,1.3867753]
[1759372924653,7.69,223.26,223.19,4.0304]
[1759372924847,7.69,223.26,223.14,5.03387935]
[1759372925049,9.0767753,223.26,223.17,1.3867753]
[1759372925253,9.0767753,223.26,223.18,108.76]
[1759372925562,7.69,223.26,223.18,108.76]
[1759372925759,7.69,223.26,223.19,1.3867753]
[1759372926561,7.69,223.26,223.2,4.0302]
[1759372927151,7.69,223.26,223.21,1.3867753]
[1759372928157,1.3867753,223.3,223.22,4.0298]
[1759372928560,7.69,223.29,223.22,4.0298]
[1759372929556,7.69,223.29,223.23,104.46]
[1759372930363,7.69,223.29,223.19,4.0302]
[1759372930566,9.0767753,223.27,223.2,29.28]
[1759372931064,9.0767753,223.27,223.2,34.6969753]
[1759372931461,9.0767753,223.27,223.2,30.6667753]
[1759372931663,9.0767753,223.27,223.21,79.28]
[1759372932163,9.0767753,223.27,223.19,5.4171753]
[1759372932360,9.0767753,223.27,223.2,82.98]
[1759372933059,1.3867753,223.27,223.2,82.98]
[1759372933261,5.02699208,223.4,223.25,1.3867753]
[1759372933563,7.54048812,223.43,223.33,1.3867753]
[1759372933564,9.0767753,223.43,223.33,1.3867753]
[1759372933861,7.69,223.41,223.34,16.7]
[1759372934371,7.69,223.54,223.4,1.3867753]
[1759372934665,1.3867753,223.51,223.42,1.3867753]
[1759372934860,7.69,223.54,223.43,48.16]
[1759372935061,1.3867753,223.52,223.44,1.3867753]
[1759372935260,7.69,223.58,223.46,1.3867753]
[1759372935462,1.3867753,223.55,223.46,1.3867753]
[1759372935662,1.3867753,223.55,223.43,51.89359292]
[1759372935858,1.3867753,223.55,223.45,1.3867753]
[1759372936057,7.69,223.53,223.45,1.3867753]
[1759372936256,7.69,223.45,223.34,46.61387935]
[1759372936465,1.3867753,223.44,223.34,42.9667753]
[1759372937466,1.3867753,223.42,223.35,85.88]
[1759372937667,7.69,223.41,223.35,85.88]
[1759372938269,7.69,223.41,223.3,13.45631513]
[1759372938471,7.69,223.41,223.31,62.7]
[1759372938670,4.0258,223.45,223.31,62.7]
[1759372939070,4.0258,223.45,223.31,66.7282]
[1759372939869,4.0262,223.43,223.32,111.72]
[1759372940068,7.69,223.46,223.33,111.76]
[1759372940262,11.7157,223.46,223.33,111.76]
[1759372940962,4.0261,223.44,223.34,111.74]
[1759372941164,70.3226,223.42,223.27,17.04058211]
[1759372941360,7.69,223.42,223.28,63.86]
[1759372941560,7.69,223.42,223.29,4.0286]
[1759372942467,7.69,223.42,223.3,111.88]
[1759372942669,4.0268,223.4,223.27,13.4352969]
[1759372942867,7.37,223.39,223.28,111.86]
[1759372943068,7.37,223.39,223.25,325.99859]
[1759372943268,7.37,223.39,223.27,13.41515604]
[1759372943572,7.37,223.38,223.27,13.41515604]
[1759372943762,7.37,223.38,223.28,111.88]
[1759372943966,7.18,223.35,223.25,325.99859]
[1759372944167,7.18,223.35,223.26,111.86]
[1759372944963,7.18,223.34,223.26,111.86]
[1759372945470,7.18,223.39,223.26,111.86]
[1759372945668,7.18,223.44,223.26,111.86]
[1759372946068,4.0262,223.43,223.29,4.0286]
[1759372946266,7.18,223.44,223.29,4.0286]
[1759372946267,7.18,223.44,223.29,62.6677]
[1759372946466,7.18,223.44,223.27,66.27978521]
[1759372946467,7.18,223.44,223.3,62.666]
[1759372947074,7.18,223.44,223.33,4.0279]
[1759372947274,7.18,223.44,223.34,112.0]
[1759372947667,4.0262,223.43,223.3,4.0285]
[1759372947974,7.18,223.42,223.3,4.0285]
[1759372948170,7.18,223.42,223.31,80.56]
[1759372948370,7.18,223.42,223.3,4.0285]
[1759372948571,7.18,223.42,223.32,4.0281]
[1759372949170,4.0257,223.46,223.34,4.0277]
[1759372949370,7.18,223.48,223.34,4.0277]
[1759372950070,7.18,223.48,223.36,4.0273]
[1759372950471,7.18,223.48,223.35,62.6519]
[1759372951271,7.18,223.48,223.35,4.0275]
[1759372951674,7.18,223.48,223.36,54.06]
[1759372951870,7.18,223.48,223.37,97.62]
[1759372952065,7.18,223.48,223.37,101.6472]
[1759372952473,7.18,223.49,223.38,111.92]
[1759372952669,7.18,223.47,223.38,111.92]
[1759372952868,7.18,223.48,223.34,4.0277]
[1759372953275,4.0256,223.46,223.31,4.0282]
[1759372953469,7.18,223.45,223.32,78.9]
[1759372953676,7.18,223.45,223.33,111.9]
[1759372954272,4.026,223.44,223.31,4.0282]
[1759372954578,7.18,223.43,223.32,107.98]
[1759372954773,4.0275,223.36,223.26,5.03387935]
[1759372954972,7.18,223.4,223.25,0.15859]
[1759372955873,7.18,223.37,223.25,0.15859]
[1759372957180,7.18,223.43,223.29,62.6686]
[1759372957382,7.18,223.43,223.31,4.0282]
[1759372957581,7.18,223.43,223.3,83.2]
[1759372957986,7.18,223.43,223.33,4.0279]
[1759372958182,7.63028521,223.5,223.32,62.6598]
[1759372958484,7.18,223.49,223.34,62.6543]
[1759372958678,7.18,223.49,223.37,4.0272]
[1759372958880,7.18,223.49,223.38,112.46]
[1759372959279,7.18,223.49,223.39,4.0268]
[1759372960075,7.18,223.49,223.38,112.46]
[1759372961976,7.18,223.49,223.39,112.36]
[1759372967286,11.2052,223.49,223.34,4.0277]
[1759372967592,11.2052,223.49,223.35,112.2]
[1759372968087,7.18,223.46,223.35,112.2]
[1759372968291,7.18,223.54,223.38,62.6427]
[1759372968490,7.18,223.54,223.39,62.6408]
[1759372969589,7.18,223.54,223.42,4.0263]
[1759372969793,7.18,223.54,223.43,92.18]
[1759372970195,7.18,223.54,223.44,4.026]
[1759372972292,62.5763,223.63,223.43,92.18]
[1759372972293,7.18,223.63,223.49,62.6129]
[1759372972497,7.18,223.72,223.53,62.6008]
[1759372972697,7.18,223.72,223.54,112.66]
[1759372972899,11.201,223.72,223.57,4.0235]
[1759372973198,7.18,223.72,223.56,62.5926]
[1759372973390,7.18,223.72,223.55,62.5958]
[1759372973594,7.18,223.72,223.56,90.7]
[1759372973898,9.70616204,223.78,223.6,4.023]
[1759372974091,9.70616204,223.78,223.56,13.55867189]
[1759372974092,62.5402,223.75,223.56,13.55867189]
[1759372974286,62.5353,223.77,223.57,31.02]
[1759372974287,7.49,223.72,223.57,31.02]
[1759372974493,7.49,223.72,223.58,5.68626204]
[1759372974691,7.49,223.76,223.61,62.579]
[1759372974890,7.49,223.76,223.59,62.5843]
[1759372975198,7.49,223.76,223.6,113.38]
[1759372975501,7.49,223.78,223.6,113.38]
[1759372975800,7.49,223.74,223.6,113.38]
[1759372977392,7.49,223.74,223.6,117.403]
[1759372977997,7.49,223.74,223.62,4.0226]
[1759372979800,7.49,223.74,223.63,113.24]
[1759372980108,11.5107,223.74,223.64,113.24]
[1759372980497,7.49,223.74,223.64,113.24]
[1759372981404,7.49,223.74,223.64,117.2623]
[1759372982602,7.49,223.74,223.61,325.48]
[1759372982804,7.49,223.74,223.65,113.26]
[1759372988512,7.49,223.78,223.65,113.26]
[1759372989604,7.49,223.78,223.66,4.022]
[1759372990114,7.49,223.78,223.65,113.26]
[1759372991108,7.49,223.82,223.67,62.5616]
[1759372991309,7.49,223.82,223.66,62.5642]
[1759372991507,7.49,223.82,223.67,62.5624]
[1759372991912,7.49,223.82,223.7,4.0213]
[1759372992113,7.49,223.82,223.71,113.06]
[1759372992308,7.49,223.82,223.72,113.04]
[1759372992513,7.49,223.82,223.73,113.02]
[1759372992716,7.49,223.82,223.74,113.02]
[1759372993014,7.49,223.82,223.75,113.02]
[1759372993516,7.49,223.86,223.76,113.0]
[1759372995307,7.49,223.86,223.76,117.0201]
[1759372995719,4.0178,223.9,223.76,117.0201]
[1759372995911,7.49,223.92,223.76,117.0201]
[1759372996311,7.49,223.88,223.73,4.0206]
[1759372996512,8.12205635,223.8,223.76,68.22346204]
[1759372996714,7.49,223.93,223.77,325.28]
[1759372997217,7.49,223.93,223.78,113.14]
[1759372997520,7.49,223.93,223.68,62.5577]
[1759372997521,69.9997,223.86,223.66,5.68626204]
[1759372997722,69.9997,223.86,223.67,113.26]
[1759372998022,7.49,223.8,223.68,107.68]
[1759372998208,7.49,223.8,223.65,325.28]
[1759372998411,7.49,223.8,223.66,113.4]
[1759372998813,62.5301,223.79,223.65,325.28]
[1759372999013,62.5235,223.81,223.66,113.36]
[1759372999014,7.49,223.78,223.66,113.36]
[1759372999819,4.0201,223.77,223.66,113.36]
[1759373000319,7.49,223.77,223.67,113.38]
[1759373000713,4.0205,223.75,223.67,113.38]
[1759373001119,7.49,223.75,223.67,113.38]
[1759373001516,4.0208,223.73,223.65,325.28]
[1759373001716,4.0208,223.73,223.67,113.4]
[1759373002215,7.49,223.75,223.67,113.4]
[1759373003215,7.52,223.73,223.67,113.4]
[1759373003418,7.52,223.7,223.58,4.14833535]
[1759373003720,7.52,223.69,223.59,63.28]
[1759373003919,7.52,223.69,223.6,63.28]
[1759373005722,7.89,223.74,223.6,63.28]
[1759373007012,11.9107,223.74,223.6,67.303]
[1759373007619,4.0212,223.71,223.6,63.28]
[1759373007921,7.89,223.7,223.61,113.36]
[1759373008528,7.89,223.75,223.61,113.36]
[1759373009726,7.89,223.75,223.62,4.0227]
[1759373009924,7.89,223.73,223.56,3.65974898]
[1759373010127,7.89,223.73,223.61,113.4]
[1759373010420,11.9109,223.73,223.61,113.4]
[1759373010627,7.89,223.73,223.61,113.4]
[1759373011023,4.0216,223.69,223.59,113.38]
[1759373011527,7.89,223.68,223.59,113.38]
[1759373011921,68.23056204,223.74,223.59,113.38]
[1759373011922,11.9111,223.72,223.59,113.38]
[1759373012519,4.0214,223.7,223.59,113.38]
[1759373012728,7.89,223.69,223.59,113.38]
[1759373012925,4.0217,223.68,223.55,3.65974898]
[1759373013130,7.89,223.67,223.56,72.03974898]
[1759373013321,7.89,223.67,223.56,68.38]
[1759373013525,4.0217,223.68,223.53,3.65974898]
[1759373013526,4.0224,223.64,223.53,3.65974898]
[1759373013728,7.89,223.64,223.54,113.3]
[1759373015426,7.89,223.64,223.52,3.65974898]
[1759373015624,7.89,223.64,223.51,8.1632432]
[1759373015823,4.0226,223.63,223.53,113.32]
[1759373016026,7.89,223.64,223.53,113.32]
[1759373016635,7.89,223.69,223.56,3.65974898]
[1759373017025,11.9116,223.69,223.57,4.0236]
[1759373017331,7.89,223.81,223.67,66.22164898]
[1759373017633,7.89,223.81,223.7,4.0213]
[1759373017924,7.89,223.81,223.68,3.65974898]
[1759373018130,7.89,223.81,223.71,114.1]
[1759373018431,4.0195,223.8,223.71,114.1]
[1759373019233,4.0199,223.78,223.71,114.1]
[1759373019425,4.0199,223.78,223.71,114.14]
[1759373019828,11.9094,223.81,223.71,114.14]
[1759373022124,62.5273,223.8,223.69,3.65974898]
[1759373022329,7.89,223.79,223.7,35.2]
[1759373023036,4.0201,223.77,223.66,3.65974898]
[1759373023229,62.5328,223.78,223.64,3.65974898]
[1759373023529,62.5328,223.78,223.65,29.08]
[1759373023831,62.5328,223.78,223.66,56.22]
[1759373023832,4.0199,223.78,223.66,56.22]
[1759373024228,7.89,223.79,223.66,56.22]
[1759373024834,4.0203,223.76,223.66,56.22]
[1759373026236,4.0207,223.74,223.65,3.65974898]
[1759373026431,11.9107,223.74,223.65,49.8]
[1759373026625,7.89,223.74,223.65,49.8]
[1759373026829,7.89,223.74,223.63,3.65974898]
[1759373027029,7.89,223.74,223.63,73.81974898]
[1759373027438,4.0209,223.73,223.63,73.81974898]
[1759373027737,7.89,223.74,223.63,73.81974898]
[1759373027934,7.89,223.74,223.64,3.65974898]
[1759373028727,7.89,223.74,223.65,3.65974898]
[1759373029434,7.89,223.74,223.64,4.0224]
[1759373029435,7.89,223.74,223.66,3.65974898]
[1759373030036,7.89,223.74,223.65,3.65974898]
[1759373030237,7.89,223.74,223.67,113.74]
[1759373030639,7.89,223.74,223.66,3.65974898]
[1759373030837,7.89,223.74,223.67,113.72]
[1759373031944,7.89,223.74,223.65,3.65974898]
[1759373032146,70.4354,223.74,223.62,74.47974898]
[1759373032338,70.4354,223.74,223.62,117.29974898]
[1759373032947,7.89,223.7,223.61,3.65974898]
[1759373033148,7.89,223.7,223.62,113.64]
[1759373033549,7.89,223.7,223.62,113.62]
[1759373033843,4.0215,223.69,223.61,3.65974898]
[1759373034047,62.5635,223.67,223.6,3.65974898]
[1759373034251,62.5635,223.67,223.55,3.65974898]
[1759373034252,7.94,223.66,223.55,3.65974898]
[1759373034452,7.94,223.64,223.52,3.65974898]
[1759373034840,4.0231,223.61,223.52,3.65974898]
[1759373035340,4.0231,223.61,223.51,4.50349422]
[1759373035341,4.0233,223.59,223.51,4.50349422]
[1759373035548,4.0233,223.59,223.47,329.3453]
[1759373035549,7.94,223.59,223.5,3.72019058]
[1759373035752,7.94,223.59,223.48,117.34019058]
[1759373035946,7.94,223.59,223.5,3.72019058]
[1759373036146,4.0232,223.6,223.49,3.72019058]
[1759373036341,62.5574,223.7,223.48,113.62]
[1759373036342,62.5547,223.7,223.57,3.72019058]
[1759373036553,7.94,223.69,223.58,114.38]
[1759373036752,11.9622,223.65,223.57,114.78]
[1759373036949,7.94,223.65,223.57,114.78]
[1759373037154,7.94,223.76,223.61,3.72019058]
[1759373037351,7.94,223.76,223.62,3.72019058]
[1759373037552,7.94,223.76,223.61,3.72019058]
[1759373037852,7.94,223.72,223.61,55.52]
[1759373038451,4.0212,223.71,223.59,3.72019058]
[1759373038654,7.94,223.71,223.59,78.84]
[1759373039349,7.94,223.68,223.56,3.72019058]
[1759373039551,7.94,223.68,223.56,118.58019058]
[1759373040251,7.94,223.76,223.6,62.5815]
[1759373040456,7.94,223.76,223.61,62.5788]
[1759373040644,7.94,223.76,223.62,4.0227]
[1759373040846,7.94,223.76,223.6,3.72019058]
[1759373041050,7.94,223.71,223.59,118.66019058]
[1759373041452,7.94,223.71,223.59,114.94]
[1759373041657,7.94,223.71,223.58,118.66019058]
[1759373041852,7.94,223.71,223.58,114.94]
[1759373042054,4.0215,223.69,223.58,114.92]
[1759373042253,4.0215,223.69,223.58,118.64019058]
[1759373044756,4.0215,223.69,223.58,3.72019058]
[1759373044951,4.0215,223.69,223.59,114.88]
[1759373045355,7.94,223.68,223.59,114.88]
[1759373045550,7.94,223.68,223.58,3.72019058]
[1759373045750,7.94,223.68,223.59,118.46019058]
[1759373046454,7.94,223.68,223.6,3.72019058]
[1759373046658,4.021,223.72,223.6,3.72019058]
[1759373047059,11.9601,223.77,223.63,3.72019058]
[1759373047659,11.9601,223.77,223.64,4.0224]
[1759373047859,11.9601,223.77,223.65,114.92]
[1759373048461,11.9601,223.77,223.65,118.64019058]
[1759373048666,11.9601,223.77,223.65,114.92]
[1759373049262,4.0205,223.75,223.65,114.92]
[1759373049457,4.0205,223.75,223.65,118.64019058]
[1759373051556,4.0205,223.75,223.66,3.72019058]
[1759373053157,7.94,223.77,223.66,3.72019058]
[1759373054569,4.0203,223.76,223.65,118.64019058]
[1759373055564,7.94,223.73,223.65,3.72019058]
[1759373055766,7.94,223.73,223.62,5.03387935]
[1759373055767,7.94,223.73,223.64,118.14019058]
[1759373056166,62.5494,223.72,223.63,3.72019058]
[1759373056366,7.94,223.71,223.6,3.72019058]
[1759373056766,4.0215,223.69,223.6,3.72019058]
[1759373057764,62.5498,223.72,223.57,623.53737935]
[1759373057765,7.94,223.67,223.58,3.72019058]
[1759373059074,4.0223,223.65,223.58,3.72019058]
[1759373059469,7.94,223.64,223.57,500.0]
[1759373060567,62.5684,223.65,223.57,500.0]
[1759373060568,11.963,223.61,223.57,500.0]
[1759373061972,7.81,223.6,223.57,500.22065]
[1759373062872,4.0233,223.59,223.57,500.22065]
[1759373064174,7.5,223.58,223.57,500.22065]
[1759373067672,7.94,223.58,223.57,469.69805]
[1759373067879,7.94,223.58,223.57,450.62305]
[1759373068179,7.94,223.58,223.57,413.89485]
[1759373068376,3.59511483,223.62,223.57,413.89485]
[1759373068377,11.5215,223.7,223.57,406.87375]
[1759373068578,7.5,223.76,223.6,3.72019058]
[1759373068782,70.0386,223.76,223.61,115.28]
[1759373069187,4.0209,223.73,223.61,115.28]
[1759373069573,4.0209,223.73,223.62,4.0227]
[1759373071580,4.0212,223.71,223.61,119.00019058]
[1759373071776,4.0212,223.71,223.61,115.28]
[1759373072586,7.5,223.72,223.61,119.3029]
[1759373073479,11.5203,223.76,223.62,66.17111483]
[1759373074082,11.5203,223.76,223.62,69.89130541]
[1759373074679,11.5203,223.76,223.65,4.0221]
[1759373076087,4.0206,223.74,223.62,11.33800541]